bitfinex/quotes_BTCUSD_20251116
["timestamp","ask_amount","ask_price","bid_price","bid_amount"]
[1763328880100,0.09777514,94057.0,94056.0,0.19551874]
[1763328880284,0.09777514,94057.0,94056.0,0.19351874]
[1763328880484,0.09777514,94057.0,94056.0,0.19451874]
[1763328880691,0.11447706,94057.0,94056.0,0.21697061]
[1763328881136,0.10447706,94057.0,94056.0,0.21697061]
[1763328881349,0.11447706,94057.0,94056.0,0.21697061]
[1763328881575,0.11481326,94057.0,94056.0,0.21697061]
[1763328881690,0.10481326,94057.0,94056.0,0.21497061]
[1763328881900,0.10481326,94057.0,94056.0,0.21397061]
[1763328882105,0.10481326,94057.0,94056.0,0.21697061]
[1763328882406,0.09481326,94057.0,94056.0,0.21697061]
[1763328882603,0.09481326,94057.0,94056.0,0.21597061]
[1763328882808,0.10481326,94057.0,94056.0,0.21597061]
[1763328883143,0.09481326,94057.0,94056.0,0.21697061]
[1763328884693,0.10481326,94057.0,94056.0,0.21697061]
[1763328885106,0.09481326,94057.0,94056.0,0.21697061]
[1763328885319,0.26537326,94057.0,94056.0,0.21697061]
[1763328885739,0.27537326,94057.0,94056.0,0.21697061]
[1763328886410,0.26537326,94057.0,94056.0,0.21697061]
[1763328886637,0.27537326,94057.0,94056.0,0.21697061]
[1763328886841,0.26537326,94057.0,94056.0,0.21697061]
[1763328887054,0.27537326,94057.0,94056.0,0.21697061]
[1763328887234,0.26537326,94057.0,94056.0,0.21697061]
[1763328887638,0.27537326,94057.0,94056.0,0.21697061]
[1763328888264,0.19009326,94057.0,94056.0,0.003]
[1763328888686,0.19009326,94057.0,94056.0,0.04641874]
[1763328889109,0.19009326,94057.0,94056.0,0.04541874]
[1763328889550,0.19009326,94057.0,94056.0,0.04641874]
[1763328889755,0.42781326,94057.0,94056.0,0.003]
[1763328889962,0.42781326,94057.0,94056.0,0.001]
[1763328889963,0.44754075,94057.0,94056.0,0.001]
[1763328890164,0.45740414,94057.0,94056.0,0.001]
[1763328890373,0.45740414,94057.0,94056.0,0.003]
[1763328890584,0.45740414,94057.0,94056.0,0.001]
[1763328890792,0.323,94056.0,94031.0,0.008692]
[1763328891001,0.01,94032.0,94031.0,0.05211074]
[1763328891628,0.04341048,94032.0,94031.0,0.05211074]
[1763328891845,0.04341048,94032.0,94031.0,0.008692]
[1763328892058,0.04341048,94032.0,94031.0,0.009692]
[1763328892685,0.04341048,94032.0,94031.0,0.010692]
[1763328893123,0.04341048,94032.0,94031.0,0.009692]
[1763328893503,0.04341048,94032.0,94031.0,0.011692]
[1763328893666,0.04341048,94032.0,94031.0,0.009692]
[1763328893872,0.04341048,94032.0,94031.0,0.008692]
[1763328894094,0.04341048,94032.0,94031.0,0.011692]
[1763328894496,0.04341048,94032.0,94031.0,0.05511074]
[1763328894704,0.04341048,94032.0,94031.0,0.011692]
[1763328894908,0.06312795,94032.0,94031.0,0.011692]
[1763328895112,0.07477893,94032.0,94031.0,0.011692]
[1763328895353,0.56833893,94032.0,94031.0,0.011692]
[1763328895522,0.55163345,94032.0,94031.0,0.010692]
[1763328895721,0.55163345,94032.0,94031.0,0.011692]
[1763328896275,0.55163345,94032.0,94031.0,0.009692]
[1763328896483,0.55163345,94032.0,94031.0,0.011692]
[1763328896709,0.55163345,94032.0,94031.0,0.009692]
[1763328896921,0.53998247,94032.0,94031.0,0.009692]
[1763328897292,0.53998247,94032.0,94031.0,0.008692]
[1763328897502,0.45470247,94032.0,94031.0,0.008692]
[1763328897699,0.54002247,94032.0,94031.0,0.05311074]
[1763328897841,0.54002247,94032.0,94031.0,0.05211074]
[1763328898254,0.54002247,94032.0,94031.0,0.05311074]
[1763328898758,0.55673005,94032.0,94031.0,0.05311074]
[1763328900439,0.38613005,94032.0,94031.0,0.05311074]
[1763328900819,0.38613005,94032.0,94031.0,0.009692]
[1763328901230,0.37613005,94032.0,94031.0,0.009692]
[1763328901585,0.38613005,94032.0,94031.0,0.009692]
[1763328901798,0.03341258,94032.0,94031.0,0.20221074]
[1763328902012,0.03341258,94032.0,94031.0,0.22243181]
[1763328902580,0.03341258,94032.0,94031.0,0.22143181]
[1763328902775,0.03341258,94032.0,94031.0,0.22343181]
[1763328903017,0.03341258,94032.0,94031.0,0.22143181]
[1763328903379,0.03341258,94032.0,94031.0,0.22443181]
[1763328904271,0.03341258,94032.0,94031.0,0.22643181]
[1763328904904,0.04341258,94032.0,94031.0,0.20621074]
[1763328905108,0.04341258,94032.0,94031.0,0.162792]
[1763328905329,0.53705258,94032.0,94031.0,0.013692]
[1763328905535,0.36641258,94032.0,94031.0,0.013692]
[1763328905748,0.36641258,94032.0,94031.0,0.010692]
[1763328906183,0.38610199,94032.0,94031.0,0.010692]
[1763328906390,0.38610199,94032.0,94031.0,0.009692]
[1763328906598,0.38610199,94032.0,94031.0,0.010692]
[1763328906821,0.38610199,94032.0,94031.0,0.008692]
[1763328907241,0.38610199,94032.0,94031.0,0.009692]
[1763328908248,0.38610199,94032.0,94031.0,0.05311074]
[1763328909367,0.38610199,94032.0,94031.0,0.010692]
[1763328909624,0.38610199,94032.0,94031.0,0.009692]
[1763328909831,0.39594903,94032.0,94031.0,0.010692]
[1763328910038,0.39594903,94032.0,94031.0,0.008692]
[1763328910039,0.45997903,94032.0,94031.0,0.008692]
[1763328910490,0.45997903,94032.0,94031.0,0.009692]
[1763328910690,0.45997903,94032.0,94031.0,0.008692]
[1763328911050,0.39594903,94032.0,94031.0,0.008692]
[1763328912132,0.42795819,94032.0,94031.0,0.008692]
[1763328912291,0.42795683,94032.0,94031.0,0.008692]
[1763328912453,0.39594767,94032.0,94031.0,0.009692]
[1763328912658,0.38610264,94032.0,94031.0,0.009692]
[1763328912858,0.39594857,94032.0,94031.0,0.009692]
[1763328913297,0.39594857,94032.0,94031.0,0.008692]
[1763328913510,0.37924099,94032.0,94031.0,0.009692]
[1763328915048,0.37924099,94032.0,94031.0,0.008692]
[1763328915393,0.54988099,94032.0,94031.0,0.008692]
[1763328916133,0.54988099,94032.0,94031.0,0.009692]
[1763328916761,0.7270103,94032.0,94031.0,0.009692]
[1763328916959,0.5563703,94032.0,94031.0,0.009692]
[1763328917350,0.6063703,94032.0,94031.0,0.009692]
[1763328917553,0.5563703,94032.0,94031.0,0.009692]
[1763328917746,0.68513025,94032.0,94031.0,0.009692]
[1763328917948,0.5563703,94032.0,94031.0,0.009692]
[1763328918381,0.6063703,94032.0,94031.0,0.009692]
[1763328918610,0.5563703,94032.0,94031.0,0.009692]
[1763328918809,0.6063703,94032.0,94031.0,0.009692]
[1763328919208,0.5563703,94032.0,94031.0,0.009692]
[1763328919444,0.6063703,94032.0,94031.0,0.009692]
[1763328919782,0.5563703,94032.0,94031.0,0.009692]
[1763328919983,0.6063703,94032.0,94031.0,0.008692]
[1763328920189,0.5563703,94032.0,94031.0,0.008692]
[1763328920654,0.6063703,94032.0,94031.0,0.008692]
[1763328921793,0.5563703,94032.0,94031.0,0.008692]
[1763328922112,0.6063703,94032.0,94031.0,0.008692]
[1763328922606,0.5563703,94032.0,94031.0,0.008692]
[1763328923688,0.323,94029.0,93982.0,0.04341874]
[1763328923909,0.01,93983.0,93982.0,0.04341874]
[1763328924128,0.01,93983.0,93982.0,0.19251874]
[1763328925021,0.01,93984.0,93982.0,0.19251874]
[1763328925231,0.01671106,93995.0,93984.0,0.04341874]
[1763328925436,0.08536,93983.0,93982.0,0.19261411]
[1763328926106,0.08536,93983.0,93982.0,0.19461411]
[1763328926320,0.1150833,93983.0,93982.0,0.19661411]
[1763328926523,0.1050833,93983.0,93982.0,0.19461411]
[1763328926728,0.1150833,93983.0,93982.0,0.19461411]
[1763328926945,0.0297233,93983.0,93982.0,0.19661411]
[1763328927169,0.04643506,93983.0,93982.0,0.2163029]
[1763328927591,0.0297233,93983.0,93982.0,0.2163029]
[1763328928002,0.0297233,93983.0,93982.0,0.2143029]
[1763328928433,0.0297233,93983.0,93982.0,0.19661411]
[1763328929057,0.0297233,93983.0,93982.0,0.04751411]
[1763328929503,0.0297233,93983.0,93982.0,0.04551411]
[1763328929710,0.0297233,93983.0,93982.0,0.04351411]
[1763328929923,0.0297233,93983.0,93982.0,0.04551411]
[1763328930363,0.0297233,93983.0,93982.0,0.04751411]
[1763328930603,0.04643684,93983.0,93982.0,0.00409537]
[1763328931455,0.04643684,93983.0,93982.0,9.537e-05]
[1763328931885,0.04643684,93983.0,93982.0,0.00209537]
[1763328932100,0.04643684,93983.0,93982.0,0.00109537]
[1763328932372,0.04643684,93983.0,93982.0,9.537e-05]
[1763328932574,0.04643684,93983.0,93982.0,0.00209537]
[1763328932984,0.04643684,93983.0,93982.0,0.00109537]
[1763328933160,0.04642251,93983.0,93982.0,9.537e-05]
[1763328933301,0.04642251,93983.0,93982.0,0.00109537]
[1763328933541,0.04642251,93983.0,93982.0,0.00309537]
[1763328934345,0.0562846,93983.0,93982.0,0.00309537]
[1763328934750,0.04642251,93983.0,93982.0,0.04651411]
[1763328935363,0.54014251,93983.0,93982.0,0.04651411]
[1763328936293,0.45478251,93983.0,93982.0,0.04651411]
[1763328937070,0.43806897,93983.0,93982.0,0.04651411]
[1763328937390,0.35270897,93983.0,93982.0,0.04651411]
[1763328939415,0.35270897,93983.0,93982.0,0.04551411]
[1763328939620,0.35270897,93983.0,93982.0,0.04351411]
[1763328940456,0.36942233,93983.0,93982.0,0.04351411]
[1763328940660,0.36942233,93983.0,93982.0,0.04451411]
[1763328941525,0.36942233,93983.0,93982.0,0.04551411]
[1763328941937,0.37929061,93983.0,93982.0,0.00209537]
[1763328943690,0.37929061,93983.0,93982.0,0.04551411]
[1763328944009,0.37929061,93983.0,93982.0,0.04351411]
[1763328944202,0.37929061,93983.0,93982.0,0.04451411]
[1763328944405,0.37929061,93983.0,93982.0,0.04551411]
[1763328944607,0.37929061,93983.0,93982.0,0.04451411]
[1763328944833,0.37929061,93983.0,93982.0,0.04351411]
[1763328945009,0.37929061,93983.0,93982.0,0.04551411]
[1763328945214,0.37929061,93983.0,93982.0,0.04451411]
[1763328945420,0.55001061,93983.0,93982.0,0.04551411]
[1763328946252,0.56672519,93983.0,93982.0,0.04551411]
[1763328948803,0.48136519,93983.0,93982.0,0.00209537]
[1763328950911,0.39600519,93983.0,93982.0,0.00209537]
[1763328951147,0.37929183,93983.0,93982.0,0.00209537]
[1763328952814,0.57493101,93983.0,93982.0,0.00209537]
[1763328953017,0.62493101,93983.0,93982.0,0.00209537]
[1763328953205,0.01,93961.0,93960.0,0.0005]
[1763328953411,0.08713725,93961.0,93960.0,0.0009482]
[1763328953894,0.56784725,93961.0,93960.0,0.0009482]
[1763328954094,0.6702393,93961.0,93960.0,0.0009482]
[1763328954283,0.7202393,93961.0,93960.0,0.0009482]
[1763328954489,0.73696062,93961.0,93960.0,0.0009482]
[1763328954692,0.7202393,93961.0,93960.0,0.0009482]
[1763328954823,0.73696291,93961.0,93960.0,0.0019482]
[1763328955225,0.8055993,93961.0,93960.0,0.0009482]
[1763328955432,0.8909593,93961.0,93960.0,0.0009482]
[1763328955630,0.8909593,93961.0,93950.0,0.0014]
[1763328955631,0.323,93960.0,93950.0,0.0014]
[1763328955832,0.65257676,93960.0,93950.0,0.0014]
[1763328956079,0.57073504,93960.0,93950.0,0.0014]
[1763328956678,0.58745896,93960.0,93950.0,0.0014]
[1763328956875,0.57073504,93960.0,93950.0,0.0014]
[1763328958361,0.58745983,93960.0,93950.0,0.0014]
[1763328959563,0.60418477,93960.0,93950.0,0.0014]
[1763328959942,0.67946343,93960.0,93950.0,0.0014]
[1763328960138,0.67946343,93960.0,93959.0,17.06169503]
[1763328960356,0.67946343,93960.0,93959.0,15.66169503]
[1763328960779,2.67946343,93960.0,93959.0,15.26235556]
[1763328961083,2.67946343,93960.0,93959.0,15.10761353]
[1763328961482,2.64760351,93960.0,93959.0,15.10761353]
[1763328961724,2.64755482,93960.0,93959.0,15.10761353]
[1763328962167,2.64855482,93960.0,93959.0,15.10761353]
[1763328962571,2.64755482,93960.0,93959.0,15.10761353]
[1763328962788,2.64855482,93960.0,93959.0,15.10761353]
[1763328962960,2.7522242,93960.0,93959.0,15.10761353]
[1763328963431,2.7532242,93960.0,93959.0,15.10761353]
[1763328965041,2.7852732,93960.0,93959.0,15.10761353]
[1763328965242,2.8706732,93960.0,93959.0,15.10761353]
[1763328965442,2.9560732,93960.0,93959.0,15.10761353]
[1763328965843,2.9560732,93960.0,93959.0,15.05421958]
[1763328966833,0.63818508,93960.0,93959.0,15.05421958]
[1763328967478,0.31518508,93960.0,93959.0,15.05421958]
[1763328967680,0.26518508,93960.0,93959.0,15.05421958]
[1763328968091,0.58818508,93960.0,93959.0,15.05421958]
[1763328968308,0.17039508,93960.0,93959.0,15.05421958]
[1763328968512,0.15367014,93960.0,93959.0,15.05421958]
[1763328968752,0.15467014,93960.0,93959.0,15.05421958]
[1763328968932,0.15367014,93960.0,93959.0,15.05421958]
[1763328969136,0.13594535,93960.0,93959.0,15.05421958]
[1763328969557,0.29049006,93960.0,93959.0,15.05421958]
[1763328970023,0.34049006,93960.0,93959.0,15.05421958]
[1763328970647,0.35721523,93960.0,93959.0,14.95421958]
[1763328971674,0.37394068,93960.0,93959.0,14.95421958]
[1763328972443,0.31318597,93960.0,93959.0,14.95421958]
[1763328975252,0.80706597,93960.0,93959.0,14.95421958]
[1763328975465,0.72162597,93960.0,93959.0,14.95421958]
[1763328975968,0.72162597,93960.0,93959.0,14.93685708]
[1763328976373,0.72162597,93960.0,93959.0,14.9240351]
[1763328976579,0.72320875,93960.0,93959.0,14.9240351]
[1763328977074,0.63618597,93960.0,93959.0,14.9240351]
[1763328978452,0.31318597,93960.0,93959.0,14.9240351]
[1763328980134,0.31320769,93960.0,93959.0,14.9240351]
[1763328981928,0.29648224,93960.0,93959.0,14.9240351]
[1763328985297,0.79036224,93960.0,93959.0,14.9240351]
[1763328985531,0.73987732,93960.0,93959.0,14.9240351]
[1763328985700,2.73987732,93960.0,93959.0,14.9240351]
[1763328985907,2.73987732,93960.0,93959.0,14.82426464]
[1763328986114,2.73987732,93960.0,93959.0,14.81833973]
[1763328986359,2.73987732,93960.0,93959.0,14.80551796]
[1763328989221,2.72315215,93960.0,93959.0,14.80551796]
[1763328992185,2.73988125,93960.0,93959.0,14.80551796]
[1763328993120,0.63621187,93960.0,93959.0,14.80551796]
[1763328994572,2.63621187,93960.0,93959.0,14.80551796]
[1763328995436,2.80709187,93960.0,93959.0,14.80551796]
[1763328995664,0.79036617,93960.0,93959.0,14.80551796]
[1763328995874,0.79036617,93960.0,93959.0,14.76491591]
[1763328996084,0.87471605,93960.0,93959.0,14.76491591]
[1763328996511,0.87471605,93960.0,93959.0,14.75209421]
[1763328996954,0.38192617,93960.0,93959.0,14.75209421]
[1763328997370,0.29648617,93960.0,93959.0,14.75209421]
[1763328997574,0.61948617,93960.0,93959.0,14.75209421]
[1763328999035,0.63621377,93960.0,93959.0,14.75209421]
[1763329001786,0.67963251,93960.0,93959.0,14.75209421]
[1763329002166,0.75235176,93960.0,93959.0,14.75209421]
[1763329002653,0.75235176,93960.0,93959.0,14.74514904]
[1763329005255,0.92323176,93960.0,93959.0,14.74514904]
[1763329005896,0.92323176,93960.0,93959.0,14.56029878]
[1763329006301,0.92323176,93960.0,93959.0,14.5474768]
[1763329009003,0.90650416,93960.0,93959.0,14.5474768]
[1763329009439,0.82106416,93960.0,93959.0,14.5474768]
[1763329010029,0.77764542,93960.0,93959.0,14.5474768]
[1763329010436,0.61948617,93960.0,93959.0,14.5474768]
[1763329011092,0.24648617,93960.0,93959.0,14.5474768]
[1763329011306,0.15269617,93960.0,93959.0,14.5474768]
[1763329011716,0.24376617,93960.0,93959.0,14.5474768]
[1763329011913,0.55003707,93960.0,93959.0,14.5474768]
[1763329012547,0.47569372,93960.0,93959.0,14.5474768]
[1763329012935,0.08877372,93960.0,93959.0,14.5474768]
[1763329014670,0.14906372,93960.0,93959.0,14.5474768]
[1763329014865,0.16890309,93960.0,93959.0,14.5474768]
[1763329015069,0.18562988,93960.0,93959.0,14.5474768]
[1763329015274,0.35650988,93960.0,93959.0,14.5474768]
[1763329016051,0.77057988,93960.0,93959.0,14.5474768]
[1763329016459,0.59969988,93960.0,93959.0,14.5474768]
[1763329018353,0.42850051,93960.0,93959.0,14.5474768]
[1763329019540,0.48879051,93960.0,93959.0,14.5474768]
[1763329019897,0.42850051,93960.0,93959.0,14.5474768]
[1763329021158,0.48880981,93960.0,93959.0,14.5474768]
[1763329021385,0.42851981,93960.0,93959.0,14.5474768]
[1763329021600,0.08732082,93960.0,93959.0,14.78104492]
[1763329021821,0.04933,93998.0,93960.0,0.04341874]
[1763329022042,0.03202606,93980.0,93960.0,0.0435533]
[1763329022259,0.00986534,93979.0,93960.0,0.0435533]
[1763329022463,0.00986534,93978.0,93960.0,0.0435533]
[1763329022676,0.00984082,93961.0,93960.0,0.11165439]
[1763329022888,0.00984082,93961.0,93960.0,0.21269618]
[1763329023107,0.03202606,93980.0,93960.0,0.11165439]
[1763329023305,0.00916,93961.0,93960.0,0.11165439]
[1763329023542,0.00916,93961.0,93960.0,0.0445533]
[1763329024328,0.00916,93961.0,93960.0,0.0455533]
[1763329024535,0.00916,93961.0,93960.0,0.00113456]
[1763329024700,0.00916,93961.0,93960.0,0.00013456]
[1763329024900,0.00916,93961.0,93960.0,0.00113456]
[1763329025193,0.00916,93961.0,93960.0,0.00213456]
[1763329025379,0.50296,93961.0,93960.0,0.10580394]
[1763329025580,0.50296,93961.0,93960.0,0.10480394]
[1763329025923,0.51968228,93961.0,93960.0,0.10580394]
[1763329026131,0.53640421,93961.0,93960.0,0.10580394]
[1763329026368,0.53640421,93961.0,93960.0,0.00113456]
[1763329026818,0.53640421,93961.0,93960.0,0.00213456]
[1763329027563,0.12800421,93961.0,93960.0,0.0455533]
[1763329027764,0.02588228,93961.0,93960.0,0.0455533]
[1763329027963,0.02588228,93961.0,93960.0,0.14922268]
[1763329028421,0.02588228,93961.0,93960.0,0.0455533]
[1763329028740,0.02588228,93961.0,93960.0,0.0445533]
[1763329029107,0.02588228,93961.0,93960.0,0.0455533]
[1763329029288,0.02588228,93961.0,93960.0,0.0445533]
[1763329029687,0.02588228,93961.0,93960.0,0.0455533]
[1763329030797,0.02588228,93961.0,93960.0,0.00213456]
[1763329030996,0.02588228,93961.0,93960.0,0.00013456]
[1763329031236,0.02588228,93961.0,93960.0,0.00213456]
[1763329031454,0.04260427,93961.0,93960.0,0.00213456]
[1763329032253,0.04260427,93961.0,93960.0,0.0455533]
[1763329034079,0.03344427,93961.0,93960.0,0.0455533]
[1763329034280,0.02588228,93961.0,93960.0,0.0455533]
[1763329034860,0.02588228,93961.0,93960.0,0.0445533]
[1763329035064,0.00900228,93962.0,93961.0,0.04341874]
[1763329035306,0.50280228,93962.0,93961.0,0.14708812]
[1763329035544,0.51952295,93962.0,93961.0,0.14708812]
[1763329035894,0.2,94000.0,93961.0,0.14708812]
[1763329036115,0.00900228,93969.0,93963.0,0.04341874]
[1763329036306,0.00900228,93970.0,93963.0,0.19251874]
[1763329036513,0.00900228,93970.0,93965.0,0.04341874]
[1763329036827,0.00900228,93967.0,93965.0,0.04341874]
[1763329036983,0.03202266,93989.0,93965.0,0.04341874]
[1763329037189,0.00900228,93970.0,93965.0,0.04341874]
[1763329037457,0.00900228,93966.0,93965.0,0.04341874]
[1763329037627,0.00900228,93970.0,93965.0,0.14708812]
[1763329037774,0.03202266,93989.0,93965.0,0.14708812]
[1763329037974,0.00900228,93970.0,93965.0,0.14708812]
[1763329038174,0.01967647,93969.0,93965.0,0.14708812]
[1763329038378,0.00900228,93966.0,93965.0,0.14708812]
[1763329038646,0.00900228,93970.0,93965.0,0.14708812]
[1763329038841,0.00900228,93968.0,93967.0,0.04341874]
[1763329039046,0.03202266,93989.0,93967.0,0.04341874]
[1763329039275,0.00900228,93968.0,93967.0,0.04341874]
[1763329039728,0.02868875,93968.0,93967.0,0.04341874]
[1763329039933,0.01672013,93984.0,93967.0,0.04341874]
[1763329040133,0.01,93968.0,93967.0,0.04341874]
[1763329043042,0.01,93965.0,93964.0,0.04341874]
[1763329044116,0.01,93965.0,93964.0,0.19251874]
[1763329044462,0.02672048,93965.0,93964.0,0.19251874]
[1763329044843,0.02672048,93965.0,93964.0,0.29618812]
[1763329045047,0.01,93965.0,93964.0,0.29618812]
[1763329045250,0.4938,93965.0,93964.0,0.29618812]
[1763329045538,0.5038,93965.0,93964.0,0.29618812]
[1763329046028,0.01672013,93984.0,93964.0,0.29618812]
[1763329046227,0.01,93972.0,93966.0,0.04341874]
[1763329046345,0.01672013,93984.0,93966.0,0.04341874]
[1763329046545,0.00985991,93983.0,93966.0,0.04341874]
[1763329046749,0.01,93967.0,93966.0,0.04341874]
[1763329046953,0.01672013,93984.0,93966.0,0.04341874]
[1763329047160,0.01672013,93984.0,93964.0,0.1511]
[1763329047161,0.01,93969.0,93968.0,0.04341874]
[1763329047783,0.00999999,94040.0,93971.0,0.04341874]
[1763329047784,0.09928,94037.0,93971.0,0.04341874]
[1763329048000,0.2,94040.0,93971.0,0.04341874]
[1763329048001,0.01,93972.0,93971.0,0.04341874]
[1763329048361,0.01671936,94012.0,93971.0,0.04341874]
[1763329048564,0.01,93993.0,93971.0,0.04341874]
[1763329048848,0.00986699,93992.0,93973.0,0.04341874]
[1763329049052,0.01671717,93994.0,93973.0,0.04341874]
[1763329049053,0.01,93974.0,93973.0,0.04341874]
[1763329049294,0.01671717,93994.0,93962.0,0.1491]
[1763329049295,0.01671717,93994.0,93971.0,0.001]
[1763329049490,0.01,93970.0,93969.0,0.04341874]
[1763329049854,0.01,93961.0,93960.0,0.0435533]
[1763329050068,0.01,93961.0,93960.0,0.14722268]
[1763329051783,0.01,93961.0,93960.0,0.14822268]
[1763329051989,0.02975242,93961.0,93960.0,0.14822268]
[1763329052366,0.02975242,93961.0,93960.0,0.14922268]
[1763329055106,0.01,93961.0,93960.0,0.39936447]
[1763329055320,0.18072,93961.0,93960.0,0.39936447]
[1763329056114,0.18072,93961.0,93960.0,0.1946533]
[1763329056743,0.09536,93961.0,93960.0,0.1946533]
[1763329058804,0.02671838,93961.0,93960.0,0.0455533]
[1763329059011,0.01,93961.0,93960.0,0.0455533]
[1763329060095,0.01,93961.0,93960.0,0.14922268]
[1763329060304,0.01,93961.0,93960.0,0.0455533]
[1763329061574,0.02671945,93961.0,93960.0,0.0455533]
[1763329061783,0.01,93961.0,93960.0,0.0455533]
[1763329064021,0.01671914,93975.0,93960.0,0.0455533]
[1763329064216,0.00988745,93974.0,93960.0,0.0455533]
[1763329064518,0.00988745,93973.0,93960.0,0.0455533]
[1763329064658,0.00988745,93972.0,93960.0,0.0445533]
[1763329064866,0.00988745,93971.0,93960.0,0.0445533]
[1763329065084,0.00988745,93970.0,93960.0,0.0435533]
[1763329065297,0.323,93968.0,93960.0,0.0435533]
[1763329065526,0.00988745,93967.0,93960.0,0.0435533]
[1763329066722,0.00988745,93967.0,93960.0,0.0445533]
[1763329067091,0.0296639,93966.0,93960.0,0.00113456]
[1763329067345,0.0296639,93965.0,93960.0,0.00113456]
[1763329067545,0.43739,93961.0,93960.0,0.00213456]
[1763329067764,0.06513,93960.0,93959.0,14.53289155]
[1763329067995,0.2434139,93960.0,93959.0,14.53296312]
[1763329068209,0.1934139,93960.0,93959.0,14.53296312]
[1763329068417,0.2434139,93960.0,93959.0,14.53296312]
[1763329068621,0.1934139,93960.0,93959.0,14.53296312]
[1763329068831,0.2434139,93960.0,93959.0,14.53296312]
[1763329069034,0.2444139,93960.0,93959.0,14.53296312]
[1763329069166,0.1944139,93960.0,93959.0,14.53296312]
[1763329070420,0.54945065,93960.0,93959.0,14.53296312]
[1763329070776,0.65932172,93960.0,93959.0,14.53296312]
[1763329070975,0.59945065,93960.0,93959.0,14.53296312]
[1763329071957,0.60945065,93960.0,93959.0,14.53296312]
[1763329072603,0.60845065,93960.0,93959.0,14.53296312]
[1763329072943,0.62617578,93960.0,93959.0,14.53296312]
[1763329073379,0.62817578,93960.0,93959.0,14.53296312]
[1763329073530,0.64490157,93960.0,93959.0,14.53296312]
[1763329073946,0.7143347,93960.0,93959.0,14.53296312]
[1763329075291,0.7997347,93960.0,93959.0,14.53296312]
[1763329075483,0.8851347,93960.0,93959.0,14.53296312]
[1763329075712,0.79897578,93960.0,93959.0,14.53296312]
[1763329075918,0.71357578,93960.0,93959.0,14.53296312]
[1763329078962,0.73030142,93960.0,93959.0,14.53296312]
[1763329079193,0.64490142,93960.0,93959.0,14.53296312]
[1763329082571,0.64390142,93960.0,93959.0,14.53296312]
[1763329083212,0.64190142,93960.0,93959.0,14.53296312]
[1763329083991,0.71201756,93960.0,93959.0,14.5260192]
[1763329084175,0.71201756,93960.0,93959.0,14.51029579]
[1763329084401,0.71301756,93960.0,93959.0,14.51029579]
[1763329084821,0.71201756,93960.0,93959.0,14.51029579]
[1763329085299,2.7564363,93960.0,93959.0,14.49747414]
[1763329085486,2.8408363,93960.0,93959.0,13.60762414]
[1763329085829,2.7564363,93960.0,93959.0,13.60762414]
[1763329086029,2.7544363,93960.0,93959.0,13.60762414]
[1763329086259,2.7564363,93960.0,93959.0,13.60762414]
[1763329086596,2.7584363,93960.0,93959.0,13.60762414]
[1763329086810,2.68932016,93960.0,93959.0,13.38546119]
[1763329087026,2.68932016,93960.0,93959.0,13.19043908]
[1763329087027,2.69069296,93960.0,93959.0,13.19043908]
[1763329087254,2.68869296,93960.0,93959.0,13.19043908]
[1763329087463,2.68669296,93960.0,93959.0,13.17306927]
[1763329087681,2.69269296,93960.0,93959.0,13.17306927]
[1763329088317,2.68969296,93960.0,93959.0,13.17306927]
[1763329088526,2.69269296,93960.0,93959.0,13.17306927]
[1763329088757,2.68969296,93960.0,93959.0,13.17306927]
[1763329089361,2.68869296,93960.0,93959.0,13.17306927]
[1763329089572,2.67196732,93960.0,93959.0,13.17306927]
[1763329089789,2.67496732,93960.0,93959.0,13.17306927]
[1763329090200,2.65824219,93960.0,93959.0,13.17306927]
[1763329090624,2.65824219,93960.0,93959.0,12.61419411]
[1763329090833,2.65824219,93960.0,93959.0,12.51582906]
[1763329091055,2.65824219,93960.0,93959.0,12.49316686]
[1763329091252,2.65824219,93960.0,93959.0,11.9878205]
[1763329091665,2.65824219,93960.0,93959.0,11.95588831]
[1763329091666,2.65624219,93960.0,93959.0,11.95588831]
[1763329092301,2.65924219,93960.0,93959.0,11.91319178]
[1763329092509,3.15924219,93960.0,93959.0,11.91319178]
[1763329093359,3.15924219,93960.0,93959.0,11.87049525]
[1763329093570,3.1759751,93960.0,93959.0,11.87049525]
[1763329094217,3.1759751,93960.0,93959.0,11.86007344]
[1763329095296,3.2614151,93960.0,93959.0,11.84724658]
[1763329095510,3.4322951,93960.0,93959.0,11.84724658]
[1763329096664,2.30955636,93960.0,93959.0,11.84724658]
[1763329096905,2.63255636,93960.0,93959.0,11.84724658]
[1763329097110,0.30818356,93960.0,93959.0,11.84724658]
[1763329097311,0.30518356,93960.0,93959.0,11.84724658]
[1763329097487,0.30718356,93960.0,93959.0,11.84724658]
[1763329098068,0.30218356,93960.0,93959.0,11.84724658]
[1763329098275,0.30518356,93960.0,93959.0,11.84724658]
[1763329098482,0.29518356,93960.0,93959.0,11.84724658]
[1763329098683,2.62618356,93960.0,93959.0,11.84724658]
[1763329098893,2.62718356,93960.0,93959.0,11.84724658]
[1763329099091,0.6706023,93960.0,93959.0,11.84030099]
[1763329099293,0.62718356,93960.0,93959.0,11.84030099]
[1763329099715,0.62618356,93960.0,93959.0,11.84030099]
[1763329099903,0.60845065,93960.0,93959.0,11.84030099]
[1763329100132,0.61045065,93960.0,93959.0,11.84030099]
[1763329100351,0.61145065,93960.0,93959.0,11.84030099]
[1763329100747,0.61045065,93960.0,93959.0,11.84030099]
[1763329101151,0.60945065,93960.0,93959.0,11.84030099]
[1763329101559,0.61045065,93960.0,93959.0,11.84030099]
[1763329102213,0.60945065,93960.0,93959.0,11.84030099]
[1763329102665,0.61045065,93960.0,93959.0,11.84030099]
[1763329102864,0.62717911,93960.0,93959.0,11.84030099]
[1763329103112,0.62617911,93960.0,93959.0,11.84030099]
[1763329103323,0.62717911,93960.0,93959.0,11.84030099]
[1763329103526,0.64390804,93960.0,93959.0,11.84030099]
[1763329103743,0.68732678,93960.0,93959.0,11.84030099]
[1763329103960,0.68879695,93960.0,93959.0,11.82293756]
[1763329104166,0.68879695,93960.0,93959.0,11.81251949]
[1763329104378,2.68879695,93960.0,93959.0,11.81251949]
[1763329105301,2.85867695,93960.0,93959.0,11.79969691]
[1763329105709,2.86067695,93960.0,93959.0,11.79969691]
[1763329105868,2.85767695,93960.0,93959.0,11.79969691]
[1763329106264,0.81825821,93960.0,93959.0,11.79969691]
[1763329106490,0.64737821,93960.0,93959.0,11.79969691]
[1763329106690,0.64537821,93960.0,93959.0,11.79969691]
[1763329107071,0.64737821,93960.0,93959.0,11.79969691]
[1763329107450,0.64337821,93960.0,93959.0,11.79969691]
[1763329107741,0.64537821,93960.0,93959.0,11.79969691]
[1763329107950,0.64437821,93960.0,93959.0,11.79969691]
[1763329108363,0.64537821,93960.0,93959.0,11.79969691]
[1763329108568,0.64437821,93960.0,93959.0,11.79969691]
[1763329108941,0.68879695,93960.0,93959.0,11.79969691]
[1763329109250,0.68679695,93960.0,93959.0,11.78687406]
[1763329109411,0.68879695,93960.0,93959.0,11.78687406]
[1763329109961,0.68779695,93960.0,93959.0,11.78687406]